bitfinex/quotes_BTCUSD_20250206
["timestamp","ask_amount","ask_price","bid_price","bid_amount"]
[1738878674491,0.00825374,96770.0,96769.0,0.1551149]
[1738878674691,0.00825374,96770.0,96769.0,0.29182749]
[1738878674902,0.0002245,96793.0,96769.0,0.29182749]
[1738878674903,0.154996,96777.0,96769.0,0.13681949]
[1738878675100,0.155001,96774.0,96769.0,0.1213069]
[1738878675302,0.00670923,96776.0,96769.0,0.1213069]
[1738878675624,0.001,96770.0,96769.0,0.1213069]
[1738878675779,0.00670923,96776.0,96769.0,0.1213069]
[1738878675999,0.155006,96770.0,96769.0,0.1213069]
[1738878676229,0.155006,96770.0,96769.0,0.0001069]
[1738878676563,0.1557838,96770.0,96769.0,0.0001069]
[1738878676765,0.155006,96770.0,96769.0,0.0001069]
[1738878678679,0.15713199,96770.0,96769.0,0.0001069]
[1738878679671,0.00212599,96770.0,96769.0,0.0001069]
[1738878679886,0.00312599,96770.0,96769.0,0.2833149]
[1738878680078,0.001,96770.0,96769.0,0.33369903]
[1738878680304,0.001,96770.0,96769.0,0.2833149]
[1738878680666,0.154987,96782.0,96769.0,0.1283069]
[1738878680863,0.154987,96782.0,96770.0,0.29871324]
[1738878681068,0.0045501,96781.0,96770.0,0.155006]
[1738878681473,0.0045501,96781.0,96770.0,0.14474051]
[1738878681671,0.0045501,96781.0,96774.0,0.154998]
[1738878681943,0.206635,96790.0,96774.0,0.154998]
[1738878681944,0.154977,96789.0,96777.0,0.154995]
[1738878682153,0.00672468,96780.0,96777.0,0.154995]
[1738878682362,0.00672468,96780.0,96774.0,0.206665]
[1738878682363,0.0021742,96780.0,96774.0,0.206665]
[1738878682721,0.0021742,96780.0,96777.0,0.154995]
[1738878683145,0.004,96782.0,96770.0,0.14370724]
[1738878683346,0.154992,96779.0,96769.0,0.1283069]
[1738878683520,0.001,96780.0,96769.0,0.1283069]
[1738878683722,0.004,96780.0,96773.0,0.155]
[1738878683921,0.004,96780.0,96770.0,0.14474051]
[1738878684146,0.00673551,96779.0,96769.0,0.1283069]
[1738878684355,0.004,96780.0,96769.0,0.1283069]
[1738878684567,0.154998,96776.0,96769.0,0.1283069]
[1738878684768,0.154999,96775.0,96769.0,0.1283069]
[1738878684923,0.154999,96775.0,96774.0,0.155]
[1738878684924,0.00672542,96775.0,96774.0,0.155]
[1738878685119,0.00455335,96775.0,96774.0,0.155]
[1738878685424,0.006,96780.0,96775.0,0.154998]
[1738878685757,0.006,96780.0,96772.0,0.155002]
[1738878686092,0.00673551,96779.0,96772.0,0.206671]
[1738878686294,0.00673551,96779.0,96778.0,0.154993]
[1738878686491,0.003,96780.0,96779.0,0.177992]
[1738878686693,0.206587,96812.0,96780.0,0.023]
[1738878686896,0.206622,96795.0,96782.0,0.154987]
[1738878687034,0.154966,96796.0,96782.0,0.25749065]
[1738878687911,0.154934,96815.0,96782.0,0.28049065]
[1738878688170,0.206587,96812.0,96782.0,0.55839065]
[1738878688371,0.09259296,96818.0,96782.0,0.55839065]
[1738878688696,0.206596,96808.0,96782.0,0.55839065]
[1738878689100,0.206605,96803.0,96782.0,0.55839065]
[1738878689297,0.206605,96803.0,96782.0,0.56039065]
[1738878689549,0.15496,96799.0,96782.0,0.56039065]
[1738878689780,0.15496,96799.0,96782.0,0.56639065]
[1738878690201,0.206609,96802.0,96782.0,0.56639065]
[1738878690437,0.1550649,96801.0,96782.0,0.56639065]
[1738878690975,0.154968,96794.0,96782.0,0.41639065]
[1738878691204,0.0001069,96801.0,96782.0,0.26140365]
[1738878691408,0.154973,96791.0,96782.0,0.26140365]
[1738878692017,0.154972,96792.0,96782.0,0.41639065]
[1738878692255,0.206618,96797.0,96782.0,0.27515242]
[1738878692465,0.206637,96788.0,96782.0,0.14964877]
[1738878692664,0.154976,96790.0,96782.0,0.14964877]
[1738878692865,0.00696905,96783.0,96782.0,0.14964877]
[1738878693066,0.0002245,96783.0,96782.0,0.14964877]
[1738878693415,0.0002245,96783.0,96782.0,0.43117255]
[1738878693615,0.0002245,96783.0,96782.0,0.43013942]
[1738878696110,0.0002245,96783.0,96782.0,0.27515242]
[1738878696515,0.0002245,96783.0,96782.0,0.43013942]
[1738878697966,0.0002245,96783.0,96782.0,0.27515242]
[1738878698167,0.1552095,96783.0,96782.0,0.02174877]
[1738878698446,0.0002245,96783.0,96782.0,0.02174877]
[1738878698693,0.00723524,96783.0,96782.0,0.02174877]
[1738878698901,0.0002245,96783.0,96782.0,0.02174877]
[1738878699044,0.00279714,96783.0,96782.0,0.02174877]
[1738878699266,0.1552095,96783.0,96782.0,0.02174877]
[1738878699482,0.16221953,96783.0,96782.0,0.01574877]
[1738878699832,0.16221953,96783.0,96782.0,0.01774877]
[1738878700040,0.16221953,96783.0,96782.0,0.01574877]
[1738878700234,0.16221953,96783.0,96782.0,0.01374877]
[1738878700438,0.16221953,96783.0,96782.0,0.002]
[1738878700439,0.00723453,96783.0,96782.0,0.002]
[1738878700679,0.00723453,96783.0,96782.0,0.155987]
[1738878700923,0.00723453,96783.0,96782.0,0.26049065]
[1738878701114,0.0002245,96783.0,96782.0,0.25949065]
[1738878701497,0.0002245,96783.0,96782.0,0.26059745]
[1738878701875,0.0002245,96783.0,96782.0,0.28359745]
[1738878702074,0.0002245,96783.0,96782.0,0.28159745]
[1738878702469,0.0002245,96783.0,96782.0,0.28259745]
[1738878702733,0.0002245,96783.0,96782.0,0.28059745]
[1738878703172,0.0002245,96783.0,96782.0,0.28259745]
[1738878703381,0.0002245,96793.0,96792.0,0.177971]
[1738878703587,0.0002245,96793.0,96792.0,0.28150761]
[1738878703866,0.0002245,96793.0,96792.0,0.28047465]
[1738878705453,0.0002245,96793.0,96792.0,0.28147465]
[1738878705864,0.0002245,96793.0,96792.0,0.37161272]
[1738878706064,0.00068627,96793.0,96792.0,0.37561272]
[1738878707334,0.00068627,96793.0,96792.0,0.45301272]
[1738878707542,0.0812,96840.0,96793.0,0.173]
[1738878707718,0.09259296,96849.0,96800.0,0.405358]
[1738878707719,0.154904,96834.0,96800.0,0.405358]
[1738878707926,0.0001689,96801.0,96800.0,0.58664349]
[1738878709306,0.0001689,96801.0,96800.0,0.50786165]
[1738878709714,0.00022471,96835.0,96824.0,0.15492]
[1738878709969,0.00016888,96825.0,96815.0,0.14363194]
[1738878710156,0.00016888,96825.0,96817.0,0.15493]
[1738878710380,0.00714574,96824.0,96817.0,0.25743365]
[1738878710674,0.00016888,96825.0,96817.0,0.25743265]
[1738878710829,0.00316888,96825.0,96819.0,0.154928]
[1738878711030,0.00714574,96824.0,96819.0,0.154928]
[1738878711254,0.00714574,96824.0,96817.0,0.16326881]
[1738878711456,0.00316888,96825.0,96819.0,0.154928]
[1738878711661,0.00316888,96825.0,96817.0,0.16326881]
[1738878711863,0.00714574,96824.0,96818.0,0.154929]
[1738878712287,0.00714574,96824.0,96818.0,0.06135951]
[1738878712464,0.00714574,96824.0,96819.0,0.154927]
[1738878712872,0.00714574,96824.0,96818.0,0.06135951]
[1738878713074,0.00714574,96824.0,96823.0,0.154921]
[1738878713273,0.00016888,96825.0,96824.0,0.15492]
[1738878713451,0.00016888,96825.0,96824.0,0.2584563]
[1738878713658,0.00016888,96825.0,96824.0,0.25742365]
[1738878715384,0.00016888,96825.0,96824.0,0.10250365]
[1738878716632,0.00016888,96825.0,96824.0,0.25742365]
[1738878717035,0.00016888,96825.0,96824.0,0.10250365]
[1738878717736,0.00016888,96825.0,96819.0,0.02102115]
[1738878717968,0.00016888,96825.0,96824.0,0.25742365]
[1738878718453,0.00016888,96825.0,96824.0,0.32658123]
[1738878721349,0.00016888,96825.0,96824.0,0.10250365]
[1738878721706,0.00678158,96825.0,96824.0,0.10250365]
[1738878721906,0.00016888,96825.0,96824.0,0.25742365]
[1738878722109,0.00016888,96825.0,96824.0,0.10250365]
[1738878722311,0.00678179,96825.0,96824.0,0.10250365]
[1738878722510,0.00016888,96825.0,96824.0,0.25742365]
[1738878722717,0.00678179,96825.0,96824.0,0.25742365]
[1738878722872,0.00016888,96825.0,96824.0,0.27084209]
[1738878723501,0.15508688,96825.0,96824.0,0.11592209]
[1738878723708,0.00016888,96825.0,96824.0,0.11592209]
[1738878723932,0.00678126,96825.0,96824.0,0.11592209]
[1738878724393,0.00678126,96825.0,96824.0,0.27084209]
[1738878725108,0.00678126,96825.0,96824.0,0.11592209]
[1738878725317,0.00319299,96825.0,96824.0,0.11592209]
[1738878725511,0.15811099,96825.0,96824.0,0.11592209]
[1738878725753,0.16472337,96825.0,96824.0,0.11592209]
[1738878726983,0.16472337,96825.0,96824.0,0.01341844]
[1738878727181,0.16472337,96825.0,96801.0,0.08267338]
[1738878727182,0.00980537,96825.0,96801.0,0.08267338]
[1738878727428,0.00980537,96825.0,96813.0,0.02020363]
[1738878727692,0.154936,96814.0,96813.0,0.02020363]
[1738878728020,0.1603885,96814.0,96813.0,0.02020363]
[1738878729557,0.1603885,96814.0,96813.0,0.02220363]
[1738878730420,0.1603885,96814.0,96813.0,0.002]
[1738878730616,0.1603885,96814.0,96813.0,0.003]
[1738878731395,0.1603885,96814.0,96813.0,0.002]
[1738878731598,0.1603885,96814.0,96801.0,0.01407346]
[1738878731599,0.154955,96802.0,96801.0,0.01407346]
[1738878731805,0.15792241,96802.0,96801.0,0.01407346]
[1738878731996,0.00296741,96802.0,96801.0,0.01407346]
[1738878732441,0.154937,96813.0,96803.0,0.154953]
[1738878732613,0.206586,96812.0,96801.0,0.01407346]
[1738878732942,0.154955,96802.0,96801.0,0.01407346]
[1738878733150,0.154955,96802.0,96801.0,0.01607346]
[1738878733323,0.15738754,96802.0,96801.0,0.01407346]
[1738878735441,0.16038066,96802.0,96801.0,0.01407346]
[1738878735841,0.16038066,96802.0,96801.0,0.01607346]
[1738878736136,0.16038066,96802.0,96801.0,0.01707346]
[1738878736496,0.16038066,96802.0,96801.0,0.0031068]
[1738878736831,0.16038066,96802.0,96801.0,0.0021068]
[1738878737034,0.16038066,96802.0,96801.0,0.0031068]
[1738878737353,0.16038066,96802.0,96801.0,0.0021068]
[1738878738208,0.16038066,96802.0,96801.0,0.0001068]
[1738878738612,0.16438066,96802.0,96801.0,0.0001068]
[1738878739128,0.16938066,96802.0,96801.0,0.0001068]
[1738878739547,0.16538066,96802.0,96801.0,0.0001068]
[1738878739697,0.17038066,96802.0,96801.0,0.0001068]
[1738878744443,0.16038066,96802.0,96801.0,0.0001068]
[1738878744915,0.16338066,96802.0,96801.0,0.0001068]
[1738878745315,0.16415846,96802.0,96801.0,0.0001068]
[1738878750112,0.43965846,96802.0,96801.0,0.0001068]
[1738878750315,0.54138431,96802.0,96801.0,0.0001068]
[1738878750432,0.54160859,96802.0,96801.0,0.0001068]
[1738878752471,0.53860859,96802.0,96801.0,0.0001068]
[1738878753065,0.154989,96781.0,96780.0,0.06388698]
[1738878753260,0.16046938,96781.0,96780.0,0.06388698]
[1738878753504,0.154997,96776.0,96775.0,0.01309003]
[1738878753723,0.154997,96776.0,96769.0,0.0001069]
[1738878753724,0.155006,96770.0,96769.0,0.0001069]
[1738878754328,0.155006,96770.0,96769.0,0.00056867]
[1738878755867,0.155006,96770.0,96769.0,0.00156867]
[1738878756696,0.154997,96776.0,96769.0,0.01456647]
[1738878756896,0.00316745,96770.0,96769.0,0.00156867]
[1738878757143,0.00228937,96781.0,96769.0,0.00260203]
[1738878757318,0.155006,96770.0,96769.0,0.00556867]
[1738878757578,0.155006,96770.0,96769.0,0.00156867]
[1738878757912,0.155006,96770.0,96769.0,0.00356867]
[1738878758115,0.155006,96770.0,96769.0,0.00156867]
[1738878758523,0.155006,96770.0,96769.0,0.00556867]
[1738878758736,0.206664,96776.0,96769.0,0.00456867]
[1738878758933,0.20662,96796.0,96769.0,0.00456867]
[1738878759217,0.155006,96770.0,96769.0,0.00456867]
[1738878759779,0.155006,96770.0,96769.0,0.00556867]
[1738878760392,0.155006,96770.0,96769.0,0.00156867]
[1738878760587,0.15817345,96770.0,96769.0,0.00156867]
[1738878761150,0.15895125,96770.0,96769.0,0.00556867]
[1738878761350,0.15895125,96770.0,96769.0,0.00156867]
[1738878761630,0.2614549,96770.0,96769.0,0.00156867]
[1738878761833,0.2606771,96770.0,96769.0,0.00056867]
[1738878763058,0.26295181,96770.0,96769.0,0.00056867]
[1738878763484,0.26695181,96770.0,96769.0,0.00056867]
[1738878768780,0.49895181,96770.0,96769.0,0.00056867]
[1738878770204,0.49895181,96770.0,96769.0,6.7e-07]
[1738878771982,0.49495181,96770.0,96769.0,6.7e-07]
[1738878772121,0.50395181,96770.0,96769.0,0.00100067]
[1738878772309,0.42195181,96770.0,96769.0,0.00100067]
[1738878773337,0.41295181,96770.0,96769.0,6.7e-07]
[1738878773759,0.42195181,96770.0,96769.0,0.00100067]
[1738878774090,0.42195181,96770.0,96769.0,0.00010747]
[1738878774319,0.42995181,96770.0,96769.0,0.00110747]
[1738878774797,0.43195181,96770.0,96769.0,0.00110747]
[1738878774954,0.41495181,96770.0,96769.0,0.00010747]
[1738878775357,0.42295181,96770.0,96769.0,0.00110747]
[1738878775810,0.42095181,96770.0,96769.0,0.00110747]
[1738878776203,0.42295181,96770.0,96769.0,0.00110747]
[1738878777565,0.17044816,96770.0,96769.0,0.00110747]
[1738878778148,0.16122596,96770.0,96769.0,0.00010747]
[1738878778515,0.17022596,96770.0,96769.0,0.00110747]
[1738878780363,0.32022596,96770.0,96769.0,0.00110747]
[1738878780568,0.31944816,96770.0,96769.0,0.00110747]
[1738878780769,0.16944816,96770.0,96769.0,0.00110747]
[1738878780975,0.17022596,96770.0,96769.0,0.00110747]
[1738878782417,0.42272961,96770.0,96769.0,0.00110747]
[1738878782595,0.49785181,96770.0,96769.0,0.00110747]
[1738878783423,0.49785181,96770.0,96769.0,4.7e-07]
[1738878783753,0.49785181,96770.0,96743.0,0.000107]
[1738878783754,0.49785181,96770.0,96743.0,4.7e-07]
[1738878783755,0.305048,96744.0,96743.0,4.7e-07]
[1738878783897,0.48775165,96744.0,96743.0,4.7e-07]
[1738878784100,0.49306799,96744.0,96743.0,4.7e-07]
[1738878784933,0.49306799,96744.0,96743.0,0.00100047]
[1738878785125,0.50206799,96744.0,96743.0,0.00100047]
[1738878785349,0.50206799,96744.0,96743.0,4.7e-07]
[1738878785350,0.52206799,96744.0,96743.0,4.7e-07]
[1738878785748,0.52306799,96744.0,96743.0,4.7e-07]
[1738878785983,0.52306799,96744.0,96743.0,0.00010727]
[1738878786329,0.51406799,96744.0,96743.0,0.0001068]
[1738878786731,0.52306799,96744.0,96743.0,0.0011068]
[1738878786992,0.54228964,96744.0,96743.0,8e-07]
[1738878787374,0.55528964,96744.0,96743.0,8e-07]
[1738878787582,0.305086,96720.0,96704.0,0.01298784]
[1738878788158,0.40758965,96720.0,96704.0,0.0001068]
[1738878790063,0.41158965,96720.0,96704.0,0.0001068]
[1738878790424,0.40958965,96720.0,96704.0,0.0001068]
[1738878790829,0.41458965,96720.0,96704.0,0.0001068]
[1738878791279,0.41758965,96720.0,96704.0,0.0001068]
[1738878791779,0.41458965,96720.0,96704.0,0.0001068]
[1738878791983,0.41658965,96720.0,96704.0,0.0001068]
[1738878793153,0.40958965,96720.0,96704.0,0.0001068]
[1738878793374,0.41158965,96720.0,96704.0,0.0001068]
[1738878793585,0.41458965,96720.0,96704.0,0.0001068]
[1738878793918,0.41058965,96720.0,96704.0,0.0001068]
[1738878794054,0.41558965,96720.0,96704.0,0.0001068]
[1738878794531,0.41858965,96720.0,96704.0,0.0001068]
[1738878794710,0.41058965,96720.0,96704.0,0.0001068]
[1738878794884,0.40758965,96720.0,96704.0,0.0001068]
[1738878795140,0.41558965,96720.0,96704.0,0.0001068]
[1738878795340,0.41858965,96720.0,96704.0,0.0001068]
[1738878795657,0.29901,96705.0,96704.0,0.0001068]
[1738878795990,0.40151365,96705.0,96704.0,0.0001068]
[1738878796942,0.40151365,96705.0,96704.0,0.00024536]
[1738878797140,0.25151365,96705.0,96704.0,0.00024536]
[1738878797370,0.30201,96705.0,96704.0,0.00024536]
[1738878797571,0.30001,96705.0,96704.0,0.00024536]
[1738878798069,0.30301,96705.0,96704.0,0.00024536]
[1738878800289,0.30101,96705.0,96704.0,0.00024536]
[1738878800489,0.30001,96705.0,96704.0,0.00024536]
[1738878800737,0.15301,96705.0,96704.0,0.00024536]
[1738878800938,0.14901,96705.0,96704.0,0.00024536]
[1738878801144,0.15001,96705.0,96704.0,0.00024536]
[1738878801362,0.1537878,96705.0,96704.0,0.00024536]
[1738878802506,0.1507878,96705.0,96704.0,0.00024536]
[1738878802741,0.1537878,96705.0,96704.0,0.00024536]
[1738878803174,0.15001,96705.0,96704.0,0.00024536]
[1738878803363,0.1537878,96705.0,96704.0,0.00024536]
[1738878803580,0.1547878,96705.0,96704.0,0.00024536]
[1738878804185,0.1497878,96705.0,96704.0,0.00024536]
[1738878804387,0.1537878,96705.0,96704.0,0.00024536]
[1738878804948,0.1547878,96705.0,96704.0,0.00024536]
[1738878805804,0.1507878,96705.0,96704.0,0.00024536]
[1738878806005,0.1537878,96705.0,96704.0,0.00024536]
[1738878806164,0.1507878,96705.0,96704.0,0.00024536]
[1738878806366,0.1497878,96705.0,96704.0,0.00024536]
[1738878806572,0.1547878,96705.0,96704.0,0.00024536]
[1738878807123,0.1537878,96705.0,96704.0,0.00024536]
[1738878807481,0.3047878,96705.0,96704.0,0.00024536]
[1738878807688,0.30401,96705.0,96704.0,0.00024536]
[1738878807906,0.30301,96705.0,96704.0,0.00024536]
[1738878808303,0.30401,96705.0,96704.0,0.00024536]
[1738878808853,0.30001,96705.0,96704.0,0.00024536]
[1738878809247,0.40551365,96705.0,96704.0,0.00024536]
[1738878809440,0.40251365,96705.0,96704.0,0.00024536]
[1738878809666,0.40551365,96705.0,96704.0,0.00024536]
[1738878810012,0.40451365,96705.0,96704.0,0.00024536]
[1738878810269,0.40151365,96705.0,96704.0,0.00024536]
[1738878810479,0.40551365,96705.0,96704.0,0.00024536]
[1738878810807,0.40451365,96705.0,96704.0,0.00024536]
[1738878811205,0.40551365,96705.0,96704.0,0.00024536]
[1738878811721,0.40451365,96705.0,96704.0,0.00024536]
[1738878811872,0.40651365,96705.0,96704.0,0.00024536]
[1738878812698,0.40351365,96705.0,96704.0,0.00024536]
[1738878812938,0.40751365,96705.0,96704.0,0.00024536]
[1738878817841,0.30501,96705.0,96704.0,0.00024536]
[1738878819949,0.40751365,96705.0,96704.0,0.00024536]
[1738878821783,0.40773815,96705.0,96704.0,0.00024536]
[1738878824986,0.3052345,96705.0,96704.0,0.00024536]
[1738878833041,0.1552345,96705.0,96704.0,0.09924536]
[1738878833774,0.1552345,96705.0,96704.0,0.02324536]
[1738878836692,0.1552345,96705.0,96704.0,0.02267593]
[1738878841084,0.305112,96704.0,96703.0,0.00022449]
[1738878841292,0.40761565,96704.0,96703.0,0.00036272]
[1738878842650,0.41161565,96704.0,96703.0,0.00036272]
[1738878843003,0.41361565,96704.0,96703.0,0.00036272]
[1738878843768,0.40961565,96704.0,96703.0,0.00036272]
[1738878844062,0.40761565,96704.0,96703.0,0.00036272]
[1738878844277,0.41061565,96704.0,96703.0,0.00036272]
[1738878845236,0.41761565,96704.0,96703.0,0.00036272]
[1738878845439,0.41061565,96704.0,96703.0,0.00036272]
[1738878845854,0.41461565,96704.0,96703.0,0.00036272]
[1738878846068,0.41061565,96704.0,96703.0,0.00036272]
[1738878846473,0.41761565,96704.0,96703.0,0.00036272]
[1738878846679,0.40761565,96704.0,96703.0,0.00036272]
[1738878846854,0.41061565,96704.0,96703.0,0.00036272]
[1738878847440,0.41461565,96704.0,96703.0,0.00036272]
[1738878847945,0.315112,96704.0,96703.0,0.00036272]
[1738878848136,0.165112,96704.0,96703.0,0.10106272]
[1738878848339,0.165112,96704.0,96703.0,0.14646272]
[1738878848859,0.158112,96704.0,96703.0,0.14646272]
[1738878848987,0.162112,96704.0,96703.0,0.14646272]
[1738878849346,0.155112,96704.0,96703.0,0.14646272]
[1738878849746,0.160112,96704.0,96703.0,0.14646272]
[1738878849929,0.155112,96704.0,96703.0,0.14646272]
[1738878850136,0.155112,96704.0,96703.0,0.02336272]
[1738878850364,0.162112,96704.0,96703.0,0.02336272]
[1738878850544,0.155112,96704.0,96703.0,0.02336272]
[1738878850737,0.162112,96704.0,96703.0,0.02336272]
[1738878851101,0.26539345,96704.0,96703.0,0.00036272]
[1738878851302,0.26461565,96704.0,96703.0,0.00036272]
[1738878852283,0.25761565,96704.0,96703.0,0.00036272]
[1738878852498,0.26561565,96704.0,96703.0,0.00036272]
[1738878852816,0.25961565,96704.0,96703.0,0.00036272]
[1738878852973,0.25761565,96704.0,96703.0,0.00036272]
[1738878853174,0.26461565,96704.0,96703.0,0.00036272]
[1738878853523,0.26761565,96704.0,96703.0,0.00036272]
[1738878853651,0.41761565,96704.0,96703.0,0.00036272]
[1738878853853,0.40761565,96704.0,96703.0,0.00036272]
[1738878854054,0.40961565,96704.0,96703.0,0.00036272]
[1738878855242,0.41561565,96704.0,96703.0,0.00036272]
[1738878855520,0.41361565,96704.0,96703.0,0.00036272]
[1738878855717,0.40761565,96704.0,96703.0,0.00036272]
[1738878855935,0.41661565,96704.0,96703.0,0.00036272]
[1738878856218,0.41361565,96704.0,96703.0,0.00036272]
[1738878856377,0.50637801,96704.0,96703.0,0.00036272]
[1738878856575,0.24987436,96704.0,96703.0,0.10656272]
[1738878856984,0.25487436,96704.0,96703.0,0.10656272]
[1738878857295,0.25787436,96704.0,96703.0,0.10656272]
[1738878858512,0.25687436,96704.0,96703.0,0.10656272]
[1738878858707,0.24787436,96704.0,96703.0,0.10656272]
[1738878858908,0.24887436,96704.0,96703.0,0.10656272]
[1738878859291,0.157112,96704.0,96703.0,0.10656272]
[1738878859465,0.156112,96704.0,96703.0,0.10656272]
[1738878859624,0.157112,96704.0,96703.0,0.10656272]
[1738878861646,0.156112,96704.0,96703.0,0.10656272]
[1738878861828,0.155112,96704.0,96703.0,0.10656272]
[1738878862197,0.0002245,96705.0,96704.0,0.023]
[1738878862411,0.0002245,96705.0,96704.0,0.1521]
[1738878862606,0.0002245,96705.0,96704.0,0.41074974]
[1738878862814,0.09276236,96712.0,96711.0,0.155101]
[1738878862994,0.09276236,96712.0,96711.0,0.40970465]
[1738878863198,0.09746173,96712.0,96711.0,0.5099509]
[1738878865126,0.09846173,96712.0,96711.0,0.5099509]
[1738878865453,0.09746173,96712.0,96711.0,0.41070465]
[1738878865655,0.09846173,96712.0,96711.0,0.41070465]
[1738878866190,0.09846173,96712.0,96711.0,0.40970465]
[1738878866393,0.09846173,96712.0,96711.0,0.41170465]
[1738878866565,0.00569937,96712.0,96711.0,0.41170465]
[1738878868126,0.00569937,96712.0,96711.0,0.88580465]
[1738878868751,0.155044,96747.0,96719.0,0.155088]
[1738878868965,0.20672,96749.0,96719.0,0.40782533]
[1738878869159,0.206729,96745.0,96719.0,0.40679165]
[1738878869962,0.206739,96741.0,96719.0,0.40779165]
[1738878870205,0.155057,96739.0,96719.0,0.5102953]
[1738878870687,0.155061,96736.0,96719.0,0.5102953]
[1738878871473,0.155054,96740.0,96719.0,0.5102953]
[1738878871670,0.155057,96739.0,96719.0,0.5102953]
[1738878871866,0.155058,96738.0,96719.0,0.5092953]
[1738878872167,0.155058,96738.0,96719.0,0.5102953]
[1738878872665,0.155058,96738.0,96719.0,0.8343953]
[1738878873232,0.155049,96744.0,96719.0,0.8343953]
[1738878874020,0.15505,96743.0,96719.0,0.8343953]
[1738878874342,0.155048,96744.0,96719.0,0.85536573]
[1738878874530,0.08256658,96751.0,96719.0,1.00536573]
[1738878875326,0.155039,96750.0,96719.0,1.00536573]
[1738878875516,0.08256658,96751.0,96719.0,1.00536573]
[1738878875723,0.155039,96750.0,96719.0,1.00436573]
[1738878875966,0.0012245,96720.0,96719.0,1.00436573]
[1738878876389,0.0012245,96720.0,96719.0,1.00836573]
[1738878877851,0.0012245,96720.0,96719.0,0.90586208]
[1738878878715,0.0012245,96720.0,96719.0,0.75077408]
[1738878878945,1e-08,96720.0,96719.0,0.90586208]
[1738878879522,1e-08,96720.0,96719.0,0.90186208]
[1738878879926,1e-08,96720.0,96719.0,1.00436573]
[1738878881117,0.155045,96746.0,96733.0,0.023]
[1738878881318,0.28928458,96751.0,96735.0,0.023]
[1738878881634,0.155052,96742.0,96737.0,0.023]
[1738878881834,0.155053,96742.0,96739.0,0.023]
[1738878882739,0.155053,96741.0,96739.0,0.023]
[1738878883642,0.155067,96733.0,96732.0,0.01184258]
[1738878884015,0.155067,96733.0,96723.0,0.0799]
[1738878884016,0.155067,96733.0,96724.0,0.023]
[1738878884226,0.155067,96733.0,96726.0,0.023]
[1738878884391,0.155067,96733.0,96728.0,0.023]
[1738878884594,0.155064,96735.0,96730.0,0.023]
[1738878884793,0.155054,96740.0,96730.0,0.12550365]
[1738878884993,0.0007778,96752.0,96730.0,0.26931074]
[1738878885248,0.156066,96733.0,96732.0,0.025]
[1738878885451,0.001,96733.0,96732.0,0.025]
[1738878885599,0.206751,96735.0,96731.0,0.023]
[1738878885800,0.155067,96733.0,96731.0,0.023]
[1738878886224,0.155067,96732.0,96731.0,0.023]
[1738878888122,0.155067,96732.0,96731.0,0.025]
[1738878888320,0.155067,96732.0,96731.0,0.001]
[1738878888908,0.156067,96732.0,96731.0,0.002]
[1738878889082,0.156067,96732.0,96731.0,0.003]
[1738878890794,0.001,96732.0,96731.0,0.003]
[1738878892958,0.001,96732.0,96731.0,0.30122081]
[1738878893106,0.001,96732.0,96731.0,0.36657265]
[1738878893663,0.001,96732.0,96731.0,0.21150365]
[1738878898084,0.001,96732.0,96731.0,0.36657265]
[1738878898397,0.001,96732.0,96731.0,0.41437265]
[1738878898596,0.001,96732.0,96731.0,0.49717644]
[1738878899763,0.001,96732.0,96731.0,0.41437265]
[1738878901120,0.001,96732.0,96731.0,0.25930365]
[1738878902130,0.001,96732.0,96731.0,0.41437265]
[1738878902331,0.001,96732.0,96731.0,0.73847265]
[1738878904919,0.001,96732.0,96731.0,0.58340365]
[1738878905858,0.001,96732.0,96731.0,0.73847265]
[1738878906068,0.00122428,96732.0,96731.0,0.73847265]
[1738878906269,0.00122428,96732.0,96731.0,0.81233374]
[1738878907166,0.00122428,96732.0,96731.0,0.58340365]
[1738878908176,0.00122428,96732.0,96731.0,0.88847265]
[1738878908594,0.20669,96763.0,96731.0,0.88847265]
[1738878908595,0.08256658,96762.0,96756.0,0.023]
[1738878908770,0.08256658,96762.0,96758.0,0.023]
[1738878908969,0.155003,96773.0,96760.0,0.023]
[1738878909170,0.155003,96772.0,96760.0,0.12550365]
[1738878909560,0.206665,96775.0,96760.0,0.12550365]
[1738878909561,0.155002,96773.0,96760.0,0.12550365]
[1738878910121,0.00036269,96770.0,96760.0,0.12550365]
[1738878910322,0.155009,96768.0,96760.0,0.12550365]
[1738878910456,0.155013,96766.0,96760.0,0.12550365]
[1738878910662,0.00036269,96770.0,96760.0,0.12550365]
[1738878910869,0.001,96762.0,96760.0,0.12550365]
[1738878911074,0.155019,96763.0,96760.0,0.12550365]
[1738878911272,0.206677,96769.0,96760.0,0.12550365]
[1738878911589,0.00536269,96770.0,96753.0,0.0482]
[1738878911791,0.206677,96769.0,96754.0,0.10250365]
[1738878911975,0.206677,96769.0,96755.0,0.023]
[1738878911976,0.155025,96758.0,96755.0,0.023]
[1738878912175,0.155025,96758.0,96751.0,0.02088245]
[1738878912176,0.001,96762.0,96757.0,0.023]
[1738878912537,0.206696,96761.0,96757.0,0.023]
[1738878912751,0.155022,96760.0,96757.0,0.023]
[1738878913945,0.211677,96769.0,96757.0,0.023]
[1738878914148,0.005,96769.0,96757.0,0.023]
[1738878914356,0.00036269,96770.0,96765.0,0.155013]
[1738878914557,0.00036269,96770.0,96769.0,0.023]
[1738878914814,0.00036269,96770.0,96769.0,0.12550365]
[1738878915020,0.00036269,96770.0,96769.0,0.36332699]
[1738878915201,0.00036269,96770.0,96769.0,0.28051165]
[1738878916047,0.00036269,96770.0,96769.0,0.83901165]
[1738878916274,0.00022428,96780.0,96779.0,0.154992]
[1738878916402,0.00022428,96780.0,96779.0,0.73462869]
[1738878916606,0.00022428,96780.0,96779.0,0.8360993]
[1738878917424,0.03148355,96799.0,96791.0,0.154971]
[1738878917619,0.15494,96812.0,96793.0,0.177969]
[1738878917844,0.00068605,96802.0,96799.0,0.15496]
[1738878918065,0.00068605,96802.0,96800.0,0.12550365]
[1738878918726,0.15564205,96802.0,96800.0,0.12550365]
[1738878919127,0.15764205,96802.0,96800.0,0.12550365]
[1738878919469,0.00068605,96802.0,96800.0,0.12550365]
[1738878920397,0.00068605,96802.0,96793.0,0.3241]
[1738878920398,0.00168605,96802.0,96793.0,0.3241]
[1738878920672,0.154966,96795.0,96793.0,0.3241]
[1738878921862,0.206621,96796.0,96794.0,0.023]
[1738878922106,0.154966,96795.0,96794.0,0.023]
[1738878923225,0.154968,96794.0,96793.0,0.001]
[1738878923458,0.1557458,96794.0,96793.0,0.001]
[1738878924178,0.154968,96794.0,96793.0,0.001]
[1738878925207,0.155968,96794.0,96793.0,0.001]
[1738878926467,0.154985,96783.0,96781.0,0.023]